fUSD/lending_fUSD_20240423
["ID","MTS","AMOUNT","RATE_DAILY","PERIOD"]
[323355812,1713911469608,-500.0,0.00012054,2]
[323355813,1713911469622,-500.0,0.00012054,2]
[323355814,1713911469631,-710.86,0.00012054,2]
[323355815,1713911469640,-500.0,0.00012054,2]
[323355816,1713911469651,-500.0,0.00012054,2]
[323355817,1713911469660,-500.0,0.00012054,2]
[323355818,1713911469670,-500.0,0.00012054,2]
[323355819,1713911469680,-500.0,0.00012054,2]
[323355820,1713911469690,-500.0,0.00012054,2]
[323355821,1713911469699,-500.0,0.00012054,2]
[323355822,1713911469709,-500.0,0.00012054,2]
[323355823,1713911469720,-614.5,0.00012054,2]
[323355824,1713911469729,-851.18,0.00012054,2]
[323355825,1713911469739,-525.79,0.00012054,2]
[323355826,1713911469750,-501.0,0.00012054,2]
[323355827,1713911469759,-649.77,0.00012054,2]
[323355828,1713911469769,-500.0,0.00012054,2]
[323355829,1713911469779,-500.0,0.00012054,2]
[323355830,1713911469788,-500.0,0.00012054,2]
[323355831,1713911469797,-500.0,0.00012054,2]
[323355832,1713911469806,-500.0,0.00012054,2]
[323355833,1713911469815,-500.0,0.00012054,2]
[323355834,1713911469825,-514.05,0.00012054,2]
[323355835,1713911469834,-735.82,0.00012054,2]
[323355836,1713911469843,-500.0,0.00012054,2]
[323355837,1713911469853,-560.41,0.00012054,2]
[323355838,1713911469862,-500.0,0.00012054,2]
[323355839,1713911469871,-500.0,0.00012054,2]
[323355840,1713911469880,-500.0,0.00012054,2]
[323355841,1713911469889,-500.0,0.00012054,2]
[323355842,1713911469899,-500.0,0.00012054,2]
[323355843,1713911469909,-500.0,0.00012054,2]
[323355844,1713911469918,-521.7,0.00012054,2]
[323355845,1713911469927,-500.0,0.00012054,2]
[323355846,1713911469936,-500.0,0.00012054,2]
[323355847,1713911469945,-500.0,0.00012054,2]
[323355848,1713911469956,-500.0,0.00012054,2]
[323355849,1713911469967,-500.0,0.00012054,2]
[323355850,1713911469976,-500.0,0.00012054,2]
[323355851,1713911469986,-500.0,0.00012054,2]
[323355852,1713911469995,-500.0,0.00012054,2]
[323355853,1713911470005,-500.0,0.00012054,2]
[323355854,1713911470016,-500.0,0.00012054,2]
[323355855,1713911470027,-500.0,0.00012054,2]
[323355856,1713911470037,-560.97,0.00012054,2]
[323355857,1713911470048,-643.17,0.00012054,2]
[323355858,1713911470058,-755.83,0.00012054,2]
[323355859,1713911470067,-605.85,0.00012054,2]
[323355860,1713911470077,-444.73,0.00012054,2]
[323355861,1713911470086,-500.0,0.00012054,2]
[323355862,1713911470098,-614.41,0.00012054,2]
[323355863,1713911470109,-500.0,0.00012054,2]
[323355864,1713911470118,-500.0,0.00012054,2]
[323355865,1713911470128,-539.16,0.00012054,2]
[323355866,1713911470139,-500.0,0.00012054,2]
[323355867,1713911470149,-500.0,0.00012054,2]
[323355868,1713911470158,-500.0,0.00012054,2]
[323355869,1713911470167,-500.0,0.00012054,2]
[323355870,1713911470177,-690.34,0.00012054,2]
[323355871,1713911470186,-777.41,0.00012054,2]
[323355872,1713911470196,-165.24,0.00012054,2]
[323355873,1713911470206,-500.0,0.00012054,2]
[323355874,1713911470217,-500.0,0.00012054,2]
[323355875,1713911470226,-500.0,0.00012054,2]
[323355876,1713911470236,-660.91,0.00012054,2]
[323355877,1713911470245,-569.39,0.00012054,2]
[323355878,1713911470254,-500.0,0.00012054,2]
[323355879,1713911470263,-638.29,0.00012054,2]
[323355880,1713911470272,-500.1,0.00012054,2]
[323355881,1713911470282,-533.2,0.00012054,2]
[323355882,1713911470291,-500.0,0.00012054,2]
[323355883,1713911470300,-500.0,0.00012054,2]
[323355884,1713911470309,-500.0,0.00012054,2]
[323355885,1713911470318,-495.26,0.00012054,2]
[323355886,1713911470328,-500.0,0.00012054,2]
[323355887,1713911470337,-842.1,0.00012054,2]
[323355888,1713911470346,-500.0,0.00012054,2]
[323355889,1713911470356,-500.0,0.00012054,2]
[323355890,1713911470365,-500.0,0.00012054,2]
[323355891,1713911470375,-500.0,0.00012054,2]
[323355892,1713911470384,-500.0,0.00012054,2]
[323355893,1713911470393,-501.16,0.00012054,2]
[323355894,1713911470402,-500.0,0.00012054,2]
[323355895,1713911470411,-701.43,0.00012054,2]
[323355896,1713911470422,-562.67,0.00012054,2]
[323355897,1713911470431,-500.0,0.00012054,2]
[323355898,1713911470440,-500.0,0.00012054,2]
[323355899,1713911470449,-535.48,0.00012054,2]
[323355900,1713911470460,-500.0,0.00012054,2]
[323355901,1713911470469,-569.5,0.00012054,2]
[323355902,1713911470481,-500.0,0.00012054,2]
[323355903,1713911470490,-500.0,0.00012054,2]
[323355904,1713911470501,-714.74,0.00012054,2]
[323355905,1713911470511,-500.0,0.00012054,2]
[323355906,1713911470522,-499.88,0.00012054,2]
[323355907,1713911470530,-564.61,0.00012054,2]
[323355908,1713911470540,-599.66,0.00012054,2]
[323355909,1713911470549,-500.0,0.00012054,2]
[323355910,1713911470558,-761.53,0.00012054,2]
[323355911,1713911470568,-500.0,0.00012054,2]
[323355912,1713911470577,-500.0,0.00012054,2]
[323355913,1713911470587,-500.0,0.00012054,2]
[323355914,1713911470597,-500.0,0.00012054,2]
[323355915,1713911470608,-500.0,0.00012054,2]
[323355916,1713911470621,-500.0,0.00012054,2]
[323355917,1713911470630,-651.78,0.00012054,2]
[323355918,1713911470639,-500.0,0.00012054,2]
[323355919,1713911470649,-874.99,0.00012054,2]
[323355920,1713911470659,-727.47,0.00012054,2]
[323355921,1713911470669,-607.09,0.00012054,2]
[323355922,1713911470678,-500.0,0.00012054,2]
[323355923,1713911470687,-500.0,0.00012054,2]
[323355924,1713911470697,-500.0,0.00012054,2]
[323355925,1713911470707,-805.58,0.00012054,2]
[323355926,1713911470717,-748.61,0.00012054,2]
[323355927,1713911470726,-500.0,0.00012054,2]
[323355928,1713911470736,-670.8,0.00012054,2]
[323355929,1713911470745,-500.0,0.00012054,2]
[323355930,1713911470754,-883.26,0.00012054,2]
[323355931,1713911470763,-500.0,0.00012054,2]
[323355932,1713911470773,-500.0,0.00012054,2]
[323355933,1713911470783,-589.11,0.00012054,2]
[323355934,1713911470792,-500.0,0.00012054,2]
[323355935,1713911470802,-500.0,0.00012054,2]
[323355936,1713911470812,-500.0,0.00012054,2]
[323355937,1713911470821,-753.29,0.00012054,2]
[323355938,1713911470831,-500.0,0.00012054,2]
[323355939,1713911470840,-500.0,0.00012054,2]
[323355940,1713911470850,-500.0,0.00012054,2]
[323355941,1713911470861,-619.6,0.00012054,2]
[323355942,1713911470871,-500.0,0.00012054,2]
[323355943,1713911470881,-595.34,0.00012054,2]
[323355944,1713911470890,-712.53,0.00012054,2]
[323355945,1713911470900,-602.83,0.00012054,2]
[323355946,1713911470911,-500.0,0.00012054,2]
[323355947,1713911470922,-527.26,0.00012054,2]
[323355948,1713911470931,-711.68,0.00012054,2]
[323355949,1713911470940,-500.0,0.00012054,2]
[323355950,1713911470950,-538.67,0.00012054,2]
[323355951,1713911470959,-500.0,0.00012054,2]
[323355952,1713911470969,-500.0,0.00012054,2]
[323355953,1713911470978,-630.35,0.00012054,2]
[323355954,1713911470988,-500.0,0.00012054,2]
[323355955,1713911470998,-500.0,0.00012054,2]
[323355956,1713911471007,-500.0,0.00012054,2]
[323355957,1713911471018,-591.67,0.00012054,2]
[323355958,1713911471027,-500.0,0.00012054,2]
[323355959,1713911471038,-500.0,0.00012054,2]
[323355960,1713911471047,-711.27,0.00012054,2]
[323355961,1713911471056,-720.29,0.00012054,2]
[323355962,1713911471065,-500.0,0.00012054,2]
[323355963,1713911471074,-500.0,0.00012054,2]
[323355964,1713911471083,-500.0,0.00012054,2]
[323355965,1713911471092,-500.0,0.00012054,2]
[323355966,1713911471102,-500.0,0.00012054,2]
[323355967,1713911471112,-500.0,0.00012054,2]
[323355968,1713911471121,-500.0,0.00012054,2]
[323355969,1713911471130,-500.0,0.00012054,2]
[323355970,1713911471139,-500.0,0.00012054,2]
[323355971,1713911471148,-859.67,0.00012054,2]
[323355972,1713911471158,-500.0,0.00012054,2]
[323355973,1713911471167,-500.0,0.00012054,2]
[323355974,1713911471176,-522.07,0.00012054,2]
[323355975,1713911471337,-500.0,0.00012054,2]
[323355976,1713911471350,-564.6,0.00012054,2]
[323355977,1713911471360,-500.0,0.00012054,2]
[323355978,1713911471370,-159.50196926,0.00012054,2]
[323355979,1713911471379,-500.0,0.00012054,2]
[323355980,1713911471388,-826.14,0.00012054,2]
[323355981,1713911471398,-544.56,0.00012054,2]
[323355982,1713911471407,-500.0,0.00012054,2]
[323355983,1713911471416,-500.0,0.00012054,2]
[323355984,1713911471425,-500.0,0.00012054,2]
[323355985,1713911471434,-603.92,0.00012054,2]
[323355986,1713911471443,-581.38,0.00012054,2]
[323355987,1713911471452,-640.47,0.00012054,2]
[323355988,1713911471462,-578.77,0.00012054,2]
[323355989,1713911471470,-500.0,0.00012054,2]
[323355990,1713911471480,-500.0,0.00012054,2]
[323355991,1713911471489,-500.0,0.00012054,2]
[323355992,1713911471498,-500.0,0.00012054,2]
[323355993,1713911471507,-500.0,0.00012054,2]
[323355994,1713911471516,-500.0,0.00012054,2]
[323355995,1713911471526,-500.0,0.00012054,2]
[323355996,1713911471535,-500.0,0.00012054,2]
[323355997,1713911471544,-718.4,0.00012054,2]
[323355998,1713911471553,-500.0,0.00012054,2]
[323355999,1713911471562,-500.0,0.00012054,2]
[323356000,1713911471572,-500.0,0.00012054,2]
[323356001,1713911471581,-500.0,0.00012054,2]
[323356002,1713911471590,-500.0,0.00012054,2]
[323356003,1713911471599,-500.0,0.00012054,2]
[323356004,1713911471610,-500.0,0.00012054,2]
[323356005,1713911471621,-636.79,0.00012054,2]
[323356006,1713911471631,-671.8,0.00012054,2]
[323356007,1713911471640,-500.0,0.00012054,2]
[323356008,1713911471649,-500.0,0.00012054,2]
[323356009,1713911471660,-500.0,0.00012054,2]
[323356010,1713911471669,-612.56,0.00012054,2]
[323356011,1713911471678,-500.0,0.00012054,2]
[323356012,1713911471689,-500.0,0.00012054,2]
[323356013,1713911471698,-760.48,0.00012054,2]
[323356014,1713911471710,-500.0,0.00012054,2]
[323356015,1713911471719,-690.63,0.00012054,2]
[323356016,1713911471728,-819.43,0.00012054,2]
[323356017,1713911471738,-500.0,0.00012054,2]
[323356018,1713911471748,-500.0,0.00012054,2]
[323356019,1713911471758,-500.0,0.00012054,2]
[323356020,1713911471767,-500.0,0.00012054,2]
[323356021,1713911471776,-1120.66,0.00012054,2]
[323356022,1713911471786,-500.0,0.00012054,2]
[323356023,1713911471796,-500.0,0.00012054,2]
[323356024,1713911471805,-500.0,0.00012054,2]
[323356025,1713911471816,-500.0,0.00012054,2]
[323356026,1713911471826,-500.0,0.00012054,2]
[323356027,1713911471836,-500.0,0.00012054,2]
[323356028,1713911471845,-500.0,0.00012054,2]
[323356029,1713911471855,-611.78,0.00012054,2]
[323356030,1713911471865,-500.0,0.00012054,2]
[323356031,1713911471875,-689.76,0.00012054,2]
[323356032,1713911471884,-322.56,0.00012054,2]
[323356033,1713911471893,-552.54,0.00012054,2]
[323356034,1713911471903,-500.0,0.00012054,2]
[323356035,1713911471912,-500.0,0.00012054,2]
[323356036,1713911471922,-500.0,0.00012054,2]
[323356037,1713911471931,-813.04,0.00012054,2]
[323356038,1713911471941,-577.3,0.00012054,2]
[323356039,1713911471951,-508.89,0.00012054,2]
[323356040,1713911471960,-500.0,0.00012054,2]
[323356041,1713911471971,-500.0,0.00012054,2]
[323356042,1713911471981,-500.0,0.00012054,2]
[323356043,1713911471991,-615.32,0.00012054,2]
[323356044,1713911472001,-500.0,0.00012054,2]
[323356045,1713911472011,-171.15646867,0.00012054,2]
[323356046,1713911472020,-615.81,0.00012054,2]
[323356047,1713911472030,-500.0,0.00012054,2]
[323356048,1713911472040,-657.5,0.00012054,2]
[323356049,1713911472049,-500.0,0.00012054,2]
[323356050,1713911472060,-809.84,0.00012054,2]
[323356051,1713911472069,-500.0,0.00012054,2]
[323356052,1713911472079,-500.0,0.00012054,2]
[323356053,1713911472089,-723.02,0.00012054,2]
[323356054,1713911472099,-538.09,0.00012054,2]
[323356055,1713911472109,-500.0,0.00012054,2]
[323356056,1713911472119,-500.0,0.00012054,2]
[323356057,1713911472128,-500.0,0.00012054,2]
[323356058,1713911472139,-754.92,0.00012054,2]
[323356059,1713911472149,-623.66,0.00012054,2]
[323356060,1713911472161,-608.92,0.00012054,2]
[323356061,1713911472171,-500.0,0.00012054,2]
[323356062,1713911472181,-588.64,0.00012054,2]
[323356063,1713911472191,-500.0,0.00012054,2]
[323356064,1713911472200,-500.0,0.00012054,2]
[323356065,1713911472211,-500.0,0.00012054,2]
[323356066,1713911472223,-500.0,0.00012054,2]
[323356067,1713911472232,-440.96,0.00012054,2]
[323356068,1713911472242,-500.0,0.00012054,2]
[323356069,1713911472251,-500.0,0.00012054,2]
[323356070,1713911472261,-864.73,0.00012054,2]
[323356071,1713911472271,-500.0,0.00012054,2]
[323356072,1713911472284,-558.04,0.00012054,2]
[323356073,1713911472294,-500.0,0.00012054,2]
[323356074,1713911472304,-500.0,0.00012054,2]
[323356075,1713911472314,-793.86,0.00012054,2]
[323356076,1713911472324,-1163.1,0.00012054,2]
[323356077,1713911472334,-338.1630754,0.00012054,2]
[323356078,1713911472344,-500.0,0.00012054,2]
[323356079,1713911472354,-500.0,0.00012054,2]
[323356080,1713911472364,-781.1,0.00012054,2]
[323356081,1713911472373,-722.28,0.00012054,2]
[323356082,1713911472383,-607.45,0.00012054,2]
[323356083,1713911472393,-603.49,0.00012054,2]
[323356084,1713911472402,-500.0,0.00012054,2]
[323356085,1713911472412,-500.0,0.00012054,2]
[323356086,1713911472422,-500.0,0.00012054,2]
[323356087,1713911472431,-900.43,0.00012054,2]
[323356088,1713911472441,-500.0,0.00012054,2]
[323356089,1713911472450,-500.0,0.00012054,2]
[323356090,1713911472459,-959.57,0.00012054,2]
[323356091,1713911472468,-500.0,0.00012054,2]
[323356092,1713911472477,-500.0,0.00012054,2]
[323356093,1713911472487,-832.71,0.00012054,2]
[323356094,1713911472496,-779.76,0.00012054,2]
[323356095,1713911472505,-500.0,0.00012054,2]
[323356096,1713911472514,-500.0,0.00012054,2]
[323356097,1713911472523,-524.17,0.00012054,2]
[323356098,1713911472532,-506.08,0.00012054,2]
[323356099,1713911472542,-500.0,0.00012054,2]
[323356100,1713911472552,-500.0,0.00012054,2]
[323356101,1713911472561,-500.0,0.00012054,2]
[323356102,1713911472570,-850.09,0.00012054,2]
[323356103,1713911472579,-500.0,0.00012054,2]
[323356104,1713911472589,-500.0,0.00012054,2]
[323356105,1713911472598,-574.71,0.00012054,2]
[323356106,1713911472608,-1818.13,0.00012054,2]
[323356107,1713911472622,-538.96,0.00012054,2]
[323356108,1713911472631,-500.0,0.00012054,2]
[323356109,1713911472641,-500.0,0.00012054,2]
[323356110,1713911472651,-500.0,0.00012054,2]
[323356111,1713911472660,-544.02,0.00012054,2]
[323356112,1713911472670,-500.0,0.00012054,2]
[323356113,1713911472679,-500.0,0.00012054,2]
[323356114,1713911472688,-500.0,0.00012054,2]
[323356115,1713911472697,-500.0,0.00012054,2]
[323356116,1713911472707,-926.84,0.00012054,2]
[323356117,1713911472717,-518.0,0.00012054,2]
[323356118,1713911472726,-575.89,0.00012054,2]
[323356119,1713911472735,-500.0,0.00012054,2]
[323356120,1713911472745,-500.0,0.00012054,2]
[323356121,1713911472754,-571.09,0.00012054,2]
[323356122,1713911472763,-652.79,0.00012054,2]
[323356123,1713911472772,-545.49,0.00012054,2]
[323356124,1713911472782,-500.0,0.00012054,2]
[323356125,1713911472791,-500.0,0.00012054,2]
[323356126,1713911472802,-525.42,0.00012054,2]
[323356127,1713911472811,-500.0,0.00012054,2]
[323356128,1713911472821,-948.71,0.00012054,2]
[323356129,1713911472831,-500.0,0.00012054,2]
[323356130,1713911472840,-560.82951105,0.00012054,2]
[323356131,1713911472850,-500.0,0.00012054,2]
[323356132,1713911472861,-500.0,0.00012054,2]
[323356133,1713911472870,-535.31,0.00012054,2]
[323356134,1713911472880,-769.52,0.00012054,2]
[323356135,1713911472890,-500.0,0.00012054,2]
[323356136,1713911472901,-500.0,0.00012054,2]
[323356137,1713911472909,-500.0,0.00012054,2]
[323356138,1713911472918,-500.0,0.00012054,2]
[323356139,1713911472929,-523.96,0.00012054,2]
[323356140,1713911472938,-658.98,0.00012054,2]
[323356141,1713911472948,-738.55194264,0.00012157,2]
[323356142,1713911472957,-7778.70128812,0.0001222,2]
[323356143,1713911472967,-211.89160026,0.00012228,2]
[323356144,1713911472976,-244.23920998,0.00012228,2]
[323356145,1713911472986,-500.0,0.00012328,2]
[323356146,1713911472995,-500.0,0.00012328,2]
[323356147,1713911473005,-500.0,0.00012328,2]
[323356148,1713911473014,-500.0,0.00012328,2]
[323356149,1713911473023,-500.0,0.00012328,2]
[323356150,1713911473032,-500.0,0.00012328,2]
[323356151,1713911473041,-500.0,0.00012328,2]
[323356152,1713911473050,-500.0,0.00012328,2]
[323356153,1713911473060,-500.0,0.00012328,2]
[323356154,1713911473071,-500.0,0.00012328,2]
[323356155,1713911473081,-500.0,0.00012328,2]
[323356156,1713911473091,-500.0,0.00012328,2]
[323356157,1713911473101,-500.0,0.00012328,2]
[323356158,1713911473111,-500.0,0.00012328,2]
[323356159,1713911473120,-516.99,0.00012328,2]
[323356160,1713911473129,-500.0,0.00012328,2]
[323356161,1713911473139,-500.0,0.00012328,2]
[323356162,1713911473148,-500.0,0.00012328,2]
[323356163,1713911473158,-500.0,0.00012328,2]
[323356164,1713911473167,-500.0,0.00012328,2]
[323356165,1713911473177,-500.0,0.00012328,2]
[323356166,1713911473186,-500.0,0.00012328,2]
[323356167,1713911473197,-500.0,0.00012328,2]
[323356168,1713911473206,-500.0,0.00012328,2]
[323356169,1713911473216,-500.0,0.00012328,2]
[323356170,1713911473226,-500.0,0.00012328,2]
[323356171,1713911473236,-500.0,0.00012328,2]
[323356172,1713911473246,-416.34478957,0.00012328,2]
[323356173,1713911473255,-574.26,0.00012328,2]
[323356174,1713911473265,-500.0,0.00012328,2]
[323356175,1713911473275,-500.0,0.00012328,2]
[323356176,1713911473284,-500.0,0.00012328,2]
[323356177,1713911473294,-504.77,0.00012328,2]
[323356178,1713911473303,-500.0,0.00012328,2]
[323356179,1713911473314,-500.0,0.00012328,2]
[323356180,1713911473323,-500.0,0.00012328,2]
[323356181,1713911473332,-500.0,0.00012328,2]
[323356182,1713911473342,-510.42,0.00012328,2]
[323356183,1713911473351,-500.0,0.00012328,2]
[323356184,1713911473362,-621.11,0.00012328,2]
[323356185,1713911473371,-500.0,0.00012328,2]
[323356186,1713911473380,-500.0,0.00012328,2]
[323356187,1713911473390,-500.0,0.00012328,2]
[323356188,1713911473399,-500.0,0.00012328,2]
[323356189,1713911473409,-524.48,0.00012328,2]
[323356190,1713911473418,-500.0,0.00012328,2]
[323356191,1713911473428,-500.0,0.00012328,2]
[323356192,1713911473438,-500.0,0.00012328,2]
[323356193,1713911473448,-611.27,0.00012328,2]
[323356194,1713911473457,-571.32,0.00012328,2]
[323356195,1713911473467,-526.94,0.00012328,2]
[323356196,1713911473476,-671.93,0.00012328,2]
[323356197,1713911473485,-500.0,0.00012328,2]
[323356198,1713911473495,-150.0,0.00012328,2]
[323356199,1713911473505,-500.0,0.00012328,2]
[323356200,1713911473515,-500.0,0.00012328,2]
[323356201,1713911473525,-500.0,0.00012328,2]
[323356202,1713911473535,-500.0,0.00012328,2]
[323356203,1713911473544,-500.0,0.00012328,2]
[323356204,1713911473553,-500.0,0.00012328,2]
[323356205,1713911473562,-500.0,0.00012328,2]
[323356206,1713911473571,-500.0,0.00012328,2]
[323356207,1713911473580,-669.6,0.00012328,2]
[323356208,1713911473590,-500.0,0.00012328,2]
[323356209,1713911473598,-500.0,0.00012328,2]
[323356210,1713911473611,-500.0,0.00012328,2]
[323356211,1713911473620,-599.5,0.00012328,2]
[323356212,1713911473629,-500.0,0.00012328,2]
[323356213,1713911473639,-500.0,0.00012328,2]
[323356214,1713911473650,-500.0,0.00012328,2]
[323356215,1713911473660,-637.76,0.00012328,2]
[323356216,1713911473669,-500.0,0.00012328,2]
[323356217,1713911473678,-500.0,0.00012328,2]
[323356218,1713911473688,-500.0,0.00012328,2]
[323356219,1713911473698,-500.0,0.00012328,2]
[323356220,1713911473708,-500.0,0.00012328,2]
[323356221,1713911473717,-500.0,0.00012328,2]
[323356222,1713911473726,-500.0,0.00012328,2]
[323356223,1713911473735,-500.0,0.00012328,2]
[323356224,1713911473745,-510.75,0.00012328,2]
[323356225,1713911473754,-500.0,0.00012328,2]
[323356226,1713911473763,-500.0,0.00012328,2]
[323356227,1713911473773,-500.0,0.00012328,2]
[323356228,1713911473782,-500.67,0.00012328,2]
[323356229,1713911473791,-500.0,0.00012328,2]
[323356230,1713911473801,-500.0,0.00012328,2]
[323356231,1713911473963,-646.0,0.00012328,2]
[323356232,1713911473974,-500.0,0.00012328,2]
[323356233,1713911473984,-500.0,0.00012328,2]
[323356234,1713911473993,-566.48,0.00012328,2]
[323356235,1713911474003,-500.0,0.00012328,2]
[323356236,1713911474013,-652.09,0.00012328,2]
[323356237,1713911474021,-500.0,0.00012328,2]
[323356238,1713911474031,-500.0,0.00012328,2]
[323356239,1713911474040,-500.0,0.00012328,2]
[323356240,1713911474049,-263.84,0.00012328,2]
[323356241,1713911474059,-573.05,0.00012328,2]
[323356242,1713911474068,-500.0,0.00012328,2]
[323356243,1713911474077,-536.54,0.00012328,2]
[323356244,1713911474087,-500.0,0.00012328,2]
[323356245,1713911474096,-500.0,0.00012328,2]
[323356246,1713911474106,-500.0,0.00012328,2]
[323356247,1713911474117,-500.0,0.00012328,2]
[323356248,1713911474126,-500.0,0.00012328,2]
[323356249,1713911474137,-559.0,0.00012328,2]
[323356250,1713911474146,-500.0,0.00012328,2]
[323356251,1713911474156,-500.0,0.00012328,2]
[323356252,1713911474165,-500.0,0.00012328,2]
[323356253,1713911474175,-500.0,0.00012328,2]
[323356254,1713911474184,-559.06,0.00012328,2]
[323356255,1713911474194,-500.0,0.00012328,2]
[323356256,1713911474204,-500.0,0.00012328,2]
[323356257,1713911474213,-500.0,0.00012328,2]
[323356258,1713911474223,-278.69621335,0.00012328,2]
[323356259,1713911474232,-567.56,0.00012328,2]
[323356260,1713911474242,-710.86,0.00012328,2]
[323356261,1713911474251,-500.0,0.00012328,2]
[323356262,1713911474261,-500.0,0.00012328,2]
[323356263,1713911474270,-500.0,0.00012328,2]
[323356264,1713911474280,-500.0,0.00012328,2]
[323356265,1713911474291,-500.0,0.00012328,2]
[323356266,1713911474300,-500.0,0.00012328,2]
[323356267,1713911474309,-500.0,0.00012328,2]
[323356268,1713911474319,-500.0,0.00012328,2]
[323356269,1713911474329,-614.5,0.00012328,2]
[323356270,1713911474339,-851.18,0.00012328,2]
[323356271,1713911474348,-525.79,0.00012328,2]
[323356272,1713911474359,-501.0,0.00012328,2]
[323356273,1713911474368,-649.77,0.00012328,2]
[323356274,1713911474378,-500.0,0.00012328,2]
[323356275,1713911474387,-500.0,0.00012328,2]
[323356276,1713911474397,-289.49,0.00012328,2]
[323356277,1713911474406,-500.0,0.00012328,2]
[323356278,1713911474416,-500.0,0.00012328,2]
[323356279,1713911474425,-500.0,0.00012328,2]
[323356280,1713911474435,-735.82,0.00012328,2]
[323356281,1713911474444,-500.0,0.00012328,2]
[323356282,1713911474454,-560.41,0.00012328,2]
[323356283,1713911474463,-500.0,0.00012328,2]
[323356284,1713911474473,-500.0,0.00012328,2]
[323356285,1713911474482,-500.0,0.00012328,2]
[323356286,1713911474492,-500.0,0.00012328,2]
[323356287,1713911474501,-500.0,0.00012328,2]
[323356288,1713911474511,-500.0,0.00012328,2]
[323356289,1713911474520,-500.0,0.00012328,2]
[323356290,1713911474529,-500.0,0.00012328,2]
[323356291,1713911474538,-500.0,0.00012328,2]
[323356292,1713911474548,-500.0,0.00012328,2]
[323356293,1713911474557,-500.0,0.00012328,2]
[323356294,1713911474567,-500.0,0.00012328,2]
[323356295,1713911474576,-430.89,0.00012328,2]
[323356296,1713911474587,-500.0,0.00012328,2]
[323356297,1713911474597,-500.0,0.00012328,2]
[323356298,1713911474607,-500.0,0.00012328,2]
[323356299,1713911474620,-500.0,0.00012328,2]
[323356300,1713911474630,-560.97,0.00012328,2]
[323356301,1713911474639,-643.17,0.00012328,2]
[323356302,1713911474649,-755.83,0.00012328,2]
[323356303,1713911474659,-605.85,0.00012328,2]
[323356304,1713911474668,-500.0,0.00012328,2]
[323356305,1713911474678,-614.41,0.00012328,2]
[323356306,1713911474687,-500.0,0.00012328,2]
[323356307,1713911474697,-500.0,0.00012328,2]
[323356308,1713911474709,-539.16,0.00012328,2]
[323356309,1713911474719,-500.0,0.00012328,2]
[323356310,1713911474728,-500.0,0.00012328,2]
[323356311,1713911474738,-500.0,0.00012328,2]